[Event "1000GM Schev-C-C February 2024"]
[Site "Santa Clara"]
[Date "2024.02.24"]
[Round "1.1"]
[White "Ganesan, Vikrant"]
[Black "Vasquez Ramirez, Rocio"]
[Result "1/2-1/2"]
[ECO "A26"]
[WhiteElo "1870"]
[BlackElo "1999"]
[Annotator "RC"]
[PlyCount "51"]
[EventDate "2024.02.13"]
[EventType "schev"]
[EventCountry "USA"]
[SourceTitle "playchess.com"]
[Source "ChessBase"]
[SourceQuality "1"]
[TimeControl "5400+30"]

1. c4 {[%emt 0:11:04]} Nf6 {[%emt 0:00:20]} 2. Nc3 {[%emt 0:00:14]} g6 {[%emt 0:00:06]} 3. e4 {[%emt 0:00:09]} d6 {[%emt 0:00:05]} 4. g3 {[%emt 0:00:11]} Bg7 {[%emt 0:00:23]} 5. Bg2 {[%emt 0:00:09]} O-O {[%emt 0:00:14]} 6. Nge2 {[%emt 0:00:04]} e5 {[%emt 0:02:30]} 7. O-O {[%emt 0:00:06]} Be6 {[%emt 0:01:18]} 8. d3 {[%emt 0:00:05]} Qd7 {[%emt 0:00:17]} 9. f4 {[%emt 0:00:33]} Nc6 {[%emt 0:11:41]} 10. Nd5 {[%emt 0:09:48]} exf4 {[%emt 0:23:22]} 11. Ndxf4 {[%emt 0:23:40]} Bg4 {[%emt 0:05:53]} 12. h3 {[%emt 0:10:27]} Bxe2 {[%emt 0:02:40]} 13. Nxe2 {[%emt 0:00:22]} Ne5 {[%emt 0:06:06]} 14. b3 {[%emt 0:06:22]} c5 {[%emt 0:06:59]} 15. Bb2 {[%emt 0:06:33]} b5 {[%emt 0:02:27]} 16. Qd2 {[%emt 0:01:36]} Ne8 {[%emt 0:10:32]} 17. Rad1 {[%emt 0:01:48]} Rb8 {[%emt 0:02:13]} 18. cxb5 {[%emt 0:00:44]} Qxb5 {[%emt 0:00:23]} 19. Ba1 {[%emt 0:03:43]} Nc7 {[%emt 0:06:09]} 20. d4 {[%emt 0:00:33]} cxd4 {[%emt 0:02:52]} 21. Nxd4 {[%emt 0:02:31]} Qb6 {[%emt 0:00:01]} 22. Kh2 {[%emt 0:02:07]} Rbd8 {[%emt 0:00:13]} 23. Bc3 {[%emt 0:02:47]} Nb5 {[%emt 0:03:51]} 24. Nxb5 {[%emt 0:06:32]} Qxb5 {[%emt 0:00:03]} 25. Bd4 {[%emt 0:01:57]} a5 {[%emt 0:03:41]} 26. Qe3 {[%emt 0:02:03]} 1/2-1/2

[Event "1000GM Schev-C-C February 2024"]
[Site "Santa Clara"]
[Date "2024.02.24"]
[Round "1.2"]
[White "Yang, Maxwell"]
[Black "Pinzon, Jairo David"]
[Result "0-1"]
[ECO "D31"]
[WhiteElo "1946"]
[BlackElo "2114"]
[Annotator "RC"]
[PlyCount "76"]
[EventDate "2024.02.13"]
[EventType "schev"]
[EventCountry "USA"]
[SourceTitle "playchess.com"]
[Source "ChessBase"]
[SourceQuality "1"]
[TimeControl "5400+30"]

1. d4 {[%emt 0:02:46]} d5 {[%emt 0:00:17]} 2. c4 {[%emt 0:00:12]} e6 {[%emt 0:00:41]} 3. Nc3 {[%emt 0:00:14]} c6 {[%emt 0:00:08]} 4. Nf3 {[%emt 0:00:09]} dxc4 {[%emt 0:00:34]} 5. a4 {[%emt 0:00:28]} Bb4 {[%emt 0:00:12]} 6. Bd2 {[%emt 0:00:38]} a5 {[%emt 0:02:32]} 7. e3 {[%emt 0:01:54]} b5 {[%emt 0:00:09]} 8. axb5 {[%emt 0:00:43]} Bxc3 {[%emt 0:00:14]} 9. Bxc3 {[%emt 0:00:05]} cxb5 {[%emt 0:00:11]} 10. b3 {[%emt 0:03:13]} Bb7 {[%emt 0:00:14]} 11. bxc4 {[%emt 0:01:18]} b4 {[%emt 0:00:08]} 12. Bb2 {[%emt 0:00:13]} Nf6 {[%emt 0:01:10]} 13. c5 {[%emt 0:01:06]} O-O {[%emt 0:02:36]} 14. Bb5 {[%emt 0:00:39]} Qd5 {[%emt 0:08:45]} 15. O-O {[%emt 0:08:21]} Ne4 {[%emt 0:04:11]} 16. Rc1 {[%emt 0:09:22]} Ng5 {[%emt 0:07:42]} 17. c6 {[%emt 0:03:54]} Nxf3+ {[%emt 0:04:53]} 18. Qxf3 {[%emt 0:00:15]} Qxb5 {[%emt 0:00:10]} 19. cxb7 {[%emt 0:00:13]} Ra7 {[%emt 0:00:17]} 20. Rc7 {[%emt 0:01:12]} a4 {[%emt 0:17:06]} 21. Rfc1 {[%emt 0:01:54]} Nd7 {[%emt 0:01:34]} 22. d5 {[%emt 0:24:59]} e5 {[%emt 0:09:25]} 23. d6 {[%emt 0:25:38]} a3 {[%emt 0:00:57]} 24. Bxe5 {[%emt 0:00:52]} Nxe5 {[%emt 0:01:31]} 25. Qf5 {[%emt 0:01:05]} g6 {[%emt 0:01:58]} 26. b8=Q {[%emt 0:06:20]} Rxb8 {[%emt 0:05:47]} 27. Qh3 {[%emt 0:04:04]} Raa8 {[%emt 0:01:19]} 28. R7c5 {[%emt 0:01:48]} Qxc5 {[%emt 0:00:50]} 29. Rxc5 {[%emt 0:00:11]} a2 {[%emt 0:00:07]} 30. g3 {[%emt 0:01:11]} a1=Q+ {[%emt 0:00:21]} 31. Kg2 {[%emt 0:00:04]} Nd3 {[%emt 0:00:33]} 32. Rd5 {[%emt 0:00:38]} Ne1+ {[%emt 0:00:08]} 33. Kf1 {[%emt 0:00:05]} Nf3+ {[%emt 0:01:17]} 34. Kg2 {[%emt 0:00:12]} Qg1+ {[%emt 0:00:17]} 35. Kxf3 {[%emt 0:00:06]} Qh1+ {[%emt 0:00:11]} 36. Qg2 {[%emt 0:00:03]} Qxg2+ {[%emt 0:00:08]} 37. Kxg2 {[%emt 0:00:04]} b3 {[%emt 0:00:08]} 38. d7 {[%emt 0:00:04]} b2 {[%emt 0:00:06]} 0-1

[Event "1000GM Schev-C-C February 2024"]
[Site "Santa Clara"]
[Date "2024.02.24"]
[Round "1.3"]
[White "Wu, Jayden"]
[Black "Zapata Campos, Lidia Karen"]
[Result "1/2-1/2"]
[ECO "B43"]
[WhiteElo "1814"]
[BlackElo "2025"]
[Annotator "RC"]
[PlyCount "165"]
[EventDate "2024.02.13"]
[EventType "schev"]
[EventCountry "USA"]
[SourceTitle "playchess.com"]
[Source "ChessBase"]
[SourceQuality "1"]
[TimeControl "5400+30"]

1. e4 {[%emt 0:01:18]} c5 {[%emt 0:00:19]} 2. Nf3 {[%emt 0:00:18]} a6 {[%emt 0:00:07]} 3. d4 {[%emt 0:00:15]} cxd4 {[%emt 0:00:22]} 4. Nxd4 {[%emt 0:01:32]} e6 {[%emt 0:00:56]} 5. Nc3 {[%emt 0:03:29]} b5 {[%emt 0:00:39]} 6. Be3 {[%emt 0:07:27]} Qc7 {[%emt 0:00:23]} 7. Qd2 {[%emt 0:05:55]} Bb4 {[%emt 0:00:24]} 8. a3 {[%emt 0:09:54]} Bxc3 {[%emt 0:08:54]} 9. Qxc3 {[%emt 0:01:06]} Qxc3+ {[%emt 0:02:18]} 10. bxc3 {[%emt 0:00:07]} Nf6 {[%emt 0:01:16]} 11. e5 {[%emt 0:06:09]} Nd5 {[%emt 0:01:47]} 12. Bd2 {[%emt 0:03:50]} Nb6 {[%emt 0:04:57]} 13. f4 {[%emt 0:03:35]} Bb7 {[%emt 0:01:59]} 14. Bd3 {[%emt 0:01:32]} O-O {[%emt 0:00:35]} 15. O-O {[%emt 0:02:50]} Rc8 {[%emt 0:01:41]} 16. f5 {[%emt 0:11:39]} Na4 {[%emt 0:01:04]} 17. fxe6 {[%emt 0:02:28]} dxe6 {[%emt 0:00:15]} 18. Rf2 {[%emt 0:06:34]} Nd7 {[%emt 0:02:15]} 19. Re1 {[%emt 0:05:34]} g6 {[%emt 0:09:51]} 20. Nf3 {[%emt 0:02:05]} Rc5 {[%emt 0:08:53]} 21. Ng5 {[%emt 0:05:41]} Rf8 {[%emt 0:05:04]} 22. Be4 {[%emt 0:07:20]} Bxe4 {[%emt 0:04:38]} 23. Nxe4 {[%emt 0:00:10]} Rxe5 {[%emt 0:00:13]} 24. Bh6 {[%emt 0:06:27]} Rc8 {[%emt 0:06:35]} 25. Rxf7 {[%emt 0:02:08]} Kxf7 {[%emt 0:02:44]} 26. Nd6+ {[%emt 0:00:11]} Kf6 {[%emt 0:00:39]} 27. Rf1+ {[%emt 0:00:50]} Rf5 {[%emt 0:00:17]} 28. Nxc8 {[%emt 0:00:08]} Rxf1+ {[%emt 0:00:27]} 29. Kxf1 {[%emt 0:00:02]} g5 {[%emt 0:00:06]} 30. h4 {[%emt 0:00:21]} gxh4 {[%emt 0:00:29]} 31. Bd2 {[%emt 0:00:36]} Ne5 {[%emt 0:01:18]} 32. Nd6 {[%emt 0:00:14]} Nc5 {[%emt 0:06:20]} 33. Be3 {[%emt 0:00:36]} Ned7 {[%emt 0:00:18]} 34. c4 {[%emt 0:02:20]} Ke7 {[%emt 0:03:41]} 35. Nc8+ {[%emt 0:01:30]} Kd8 {[%emt 0:26:16]} 36. Nb6 {[%emt 0:01:16]} Nxb6 {[%emt 0:00:00]} 37. cxb5 {[%emt 0:00:41]} Nba4 {[%emt 0:00:00]} 38. bxa6 {[%emt 0:00:14]} Nxa6 {[%emt 0:00:00]} 39. Kf2 {[%emt 0:00:26]} Kd7 {[%emt 0:00:00]} 40. Kf3 {[%emt 0:00:10]} Kd6 {[%emt 0:00:00]} 41. Kg4 {[%emt 0:00:29]} Nc7 {[%emt 0:00:00]} 42. Kxh4 {[%emt 0:00:14]} Nb5 {[%emt 0:00:00]} 43. Kh5 {[%emt 0:00:56]} Nxa3 {[%emt 0:00:00]} 44. Kh6 {[%emt 0:00:04]} Nxc2 {[%emt 0:00:00]} 45. Bd2 {[%emt 0:00:42]} e5 {[%emt 0:00:00]} 46. Kxh7 {[%emt 0:00:45]} Nc5 {[%emt 0:00:00]} 47. Kh6 {[%emt 0:01:09]} Nb3 {[%emt 0:00:00]} 48. Bg5 {[%emt 0:00:36]} e4 {[%emt 0:00:00]} 49. Bf4+ {[%emt 0:00:17]} Ke6 {[%emt 0:00:00]} 50. g4 {[%emt 0:00:07]} Nbd4 {[%emt 0:00:00]} 51. g5 {[%emt 0:00:45]} e3 {[%emt 0:00:00]} 52. Bxe3 {[%emt 0:00:14]} Nxe3 {[%emt 0:00:00]} 53. g6 {[%emt 0:00:41]} Kf6 {[%emt 0:00:00]} 54. g7 {[%emt 0:00:25]} Ndf5+ {[%emt 0:00:00]} 55. Kh5 {[%emt 0:00:29]} Nxg7+ {[%emt 0:00:00]} 56. Kh4 {[%emt 0:00:17]} Ngf5+ {[%emt 0:00:00]} 57. Kh5 {[%emt 0:00:16]} Nd6 {[%emt 0:00:00]} 58. Kh4 {[%emt 0:00:21]} Ne4 {[%emt 0:00:00]} 59. Kh5 {[%emt 0:00:18]} Ng3+ {[%emt 0:00:00]} 60. Kh4 {[%emt 0:00:12]} Ngf5+ {[%emt 0:00:00]} 61. Kh5 {[%emt 0:00:08]} Ng3+ {[%emt 0:01:25]} 62. Kh4 {[%emt 0:00:34]} Ne4 {[%emt 0:00:06]} 63. Kh5 {[%emt 0:00:12]} Kf5 {[%emt 0:00:10]} 64. Kh4 {[%emt 0:00:24]} Nd5 {[%emt 0:00:15]} 65. Kh5 {[%emt 0:00:38]} Ndf6+ {[%emt 0:00:39]} 66. Kh4 {[%emt 0:00:22]} Kf4 {[%emt 0:00:04]} 67. Kh3 {[%emt 0:00:04]} Ng4 {[%emt 0:01:41]} 68. Kh4 {[%emt 0:00:23]} Ng3 {[%emt 0:00:20]} 69. Kh3 {[%emt 0:00:05]} Ne3 {[%emt 0:01:07]} 70. Kh4 {[%emt 0:00:19]} Ng2+ {[%emt 0:00:08]} 71. Kh3 {[%emt 0:00:04]} Kf3 {[%emt 0:00:04]} 72. Kh2 {[%emt 0:00:16]} Ne2 {[%emt 0:03:51]} 73. Kh3 {[%emt 0:00:34]} Ng1+ {[%emt 0:00:22]} 74. Kh2 {[%emt 0:00:04]} Kf2 {[%emt 0:00:06]} 75. Kh1 {[%emt 0:00:07]} Nf4 {[%emt 0:02:48]} 76. Kh2 {[%emt 0:00:08]} Nf3+ {[%emt 0:02:31]} 77. Kh1 {[%emt 0:00:08]} Ng5 {[%emt 0:00:58]} 78. Kh2 {[%emt 0:00:07]} Ne2 {[%emt 0:02:23]} 79. Kh1 {[%emt 0:00:08]} Ng1 {[%emt 0:00:09]} 80. Kh2 {[%emt 0:00:10]} Ne2 {[%emt 0:01:15]} 81. Kh1 {[%emt 0:00:08]} Nf4 {[%emt 0:00:36]} 82. Kh2 {[%emt 0:00:07]} Ne2 {[%emt 0:01:38]} 83. Kh1 {[%emt 0:00:07]} 1/2-1/2

[Event "1000GM Schev-C-C February 2024"]
[Site "Santa Clara"]
[Date "2024.02.24"]
[Round "1.4"]
[White "Montes Orozco, Miguel Angel"]
[Black "Fan, Shengjie"]
[Result "1-0"]
[ECO "D32"]
[WhiteElo "2178"]
[BlackElo "1578"]
[Annotator "RC"]
[PlyCount "117"]
[EventDate "2024.02.13"]
[EventType "schev"]
[EventCountry "USA"]
[SourceTitle "playchess.com"]
[Source "ChessBase"]
[SourceQuality "1"]
[TimeControl "5400+30"]

1. Nf3 {[%emt 0:01:43]} d5 {[%emt 0:00:02]} 2. e3 {[%emt 0:00:15]} Nf6 {[%emt 0:00:16]} 3. c4 {[%emt 0:00:04]} e6 {[%emt 0:00:26]} 4. Nc3 {[%emt 0:00:32]} c5 {[%emt 0:02:21]} 5. cxd5 {[%emt 0:01:23]} exd5 {[%emt 0:01:11]} 6. d4 {[%emt 0:00:28]} a6 {[%emt 0:02:30]} 7. Be2 {[%emt 0:02:21]} Nc6 {[%emt 0:00:34]} 8. O-O {[%emt 0:00:14]} Bd6 {[%emt 0:03:00]} 9. b3 {[%emt 0:00:41]} O-O {[%emt 0:00:20]} 10. h3 {[%emt 0:03:50]} h6 {[%emt 0:02:31]} 11. Bb2 {[%emt 0:00:25]} Be6 {[%emt 0:03:21]} 12. Rc1 {[%emt 0:01:12]} cxd4 {[%emt 0:00:49]} 13. Nxd4 {[%emt 0:00:15]} Nxd4 {[%emt 0:00:37]} 14. Qxd4 {[%emt 0:00:09]} Rc8 {[%emt 0:05:15]} 15. Na4 {[%emt 0:04:37]} Qe7 {[%emt 0:08:17]} 16. Nb6 {[%emt 0:02:41]} Rc5 {[%emt 0:03:27]} 17. Bf3 {[%emt 0:03:51]} Rd8 {[%emt 0:07:36]} 18. Rfd1 {[%emt 0:03:03]} Qf8 {[%emt 0:14:54]} 19. Qd3 {[%emt 0:06:56]} Qe7 {[%emt 0:07:36]} 20. Bd4 {[%emt 0:06:29]} Rc7 {[%emt 0:05:43]} 21. Rxc7 {[%emt 0:12:13]} Bxc7 {[%emt 0:03:50]} 22. Bxf6 {[%emt 0:06:36]} Qxf6 {[%emt 0:00:48]} 23. Nxd5 {[%emt 0:00:04]} Bxd5 {[%emt 0:00:34]} 24. Bxd5 {[%emt 0:00:03]} Qe5 {[%emt 0:00:55]} 25. Qc4 {[%emt 0:00:20]} Kh8 {[%emt 0:01:30]} 26. Rd4 {[%emt 0:03:11]} Bb6 {[%emt 0:04:55]} 27. Rd2 {[%emt 0:01:10]} Bc7 {[%emt 0:01:19]} 28. g3 {[%emt 0:00:17]} Bb6 {[%emt 0:04:02]} 29. Kg2 {[%emt 0:00:18]} Qe7 {[%emt 0:04:38]} 30. Rc2 {[%emt 0:02:15]} Kg8 {[%emt 0:00:39]} 31. Qe4 {[%emt 0:01:49]} Qxe4+ {[%emt 0:00:52]} 32. Bxe4 {[%emt 0:00:02]} g6 {[%emt 0:00:18]} 33. Bxb7 {[%emt 0:00:10]} a5 {[%emt 0:01:06]} 34. Rc6 {[%emt 0:01:13]} Ba7 {[%emt 0:00:19]} 35. Ra6 {[%emt 0:00:24]} Bb8 {[%emt 0:00:25]} 36. Rxa5 {[%emt 0:00:05]} Rd7 {[%emt 0:11:34]} 37. Bc6 {[%emt 0:00:31]} Rc7 {[%emt 0:00:00]} 38. Ra8 {[%emt 0:00:19]} Rc8 {[%emt 0:00:00]} 39. Kf3 {[%emt 0:01:54]} Kg7 {[%emt 0:00:00]} 40. Ke4 {[%emt 0:01:16]} Rxc6 {[%emt 0:00:00]} 41. Rxb8 {[%emt 0:00:06]} Rc2 {[%emt 0:00:00]} 42. a4 {[%emt 0:00:58]} Rxf2 {[%emt 0:00:00]} 43. a5 {[%emt 0:00:39]} Ra2 {[%emt 0:00:00]} 44. b4 {[%emt 0:00:10]} Ra3 {[%emt 0:00:00]} 45. Rb6 {[%emt 0:00:23]} Kf8 {[%emt 0:00:00]} 46. a6 {[%emt 0:00:06]} Ra4 {[%emt 0:00:00]} 47. Kf3 {[%emt 0:00:05]} Kg7 {[%emt 0:00:00]} 48. b5 {[%emt 0:00:04]} Rc4 {[%emt 0:00:00]} 49. a7 {[%emt 0:00:08]} Ra4 {[%emt 0:00:00]} 50. Ra6 {[%emt 0:00:06]} Rxa6 {[%emt 0:00:00]} 51. bxa6 {[%emt 0:00:06]} Kf6 {[%emt 0:00:00]} 52. a8=Q {[%emt 0:38:20]} Ke7 {[%emt 0:00:00]} 53. Qc6 {[%emt 0:00:00]} Kf8 {[%emt 0:00:00]} 54. Qf6 {[%emt 0:00:00]} Ke8 {[%emt 0:00:00]} 55. Qd6 {[%emt 0:00:00]} f5 {[%emt 0:00:00]} 56. Qc7 {[%emt 0:00:00]} g5 {[%emt 0:00:00]} 57. a7 {[%emt 0:00:00]} g4+ {[%emt 0:00:00]} 58. Kf4 {[%emt 0:00:00]} gxh3 {[%emt 0:00:00]} 59. a8=R# {[%emt 0:00:00]} 1-0

[Event "1000GM Schev-C-C February 2024"]
[Site "Santa Clara"]
[Date "2024.02.24"]
[Round "1.5"]
[White "Garcia Lopez, Miguel Angel"]
[Black "Yuan, Serena"]
[Result "1/2-1/2"]
[ECO "B33"]
[WhiteElo "2262"]
[BlackElo "1771"]
[Annotator "RC"]
[PlyCount "120"]
[EventDate "2024.02.13"]
[EventType "schev"]
[EventCountry "USA"]
[SourceTitle "playchess.com"]
[Source "ChessBase"]
[SourceQuality "1"]
[TimeControl "5400+30"]

1. e4 {[%emt 0:00:49]} c5 {[%emt 0:00:10]} 2. Nf3 {[%emt 0:00:07]} Nc6 {[%emt 0:00:06]} 3. d4 {[%emt 0:00:14]} cxd4 {[%emt 0:00:07]} 4. Nxd4 {[%emt 0:00:04]} Nf6 {[%emt 0:00:09]} 5. Nc3 {[%emt 0:00:06]} e5 {[%emt 0:00:11]} 6. Ndb5 {[%emt 0:00:06]} d6 {[%emt 0:00:08]} 7. Bg5 {[%emt 0:00:10]} a6 {[%emt 0:00:06]} 8. Na3 {[%emt 0:00:07]} b5 {[%emt 0:00:09]} 9. Nab1 {[%emt 0:00:09]} Be7 {[%emt 0:00:40]} 10. Bxf6 {[%emt 0:00:21]} Bxf6 {[%emt 0:00:08]} 11. a4 {[%emt 0:00:06]} b4 {[%emt 0:04:00]} 12. Nd5 {[%emt 0:00:08]} O-O {[%emt 0:00:25]} 13. Bc4 {[%emt 0:00:09]} Bg5 {[%emt 0:01:15]} 14. O-O {[%emt 0:00:15]} Rb8 {[%emt 0:01:38]} 15. Qd3 {[%emt 0:01:34]} a5 {[%emt 0:01:56]} 16. b3 {[%emt 0:03:15]} Kh8 {[%emt 0:01:40]} 17. Nd2 {[%emt 0:02:24]} f5 {[%emt 0:05:04]} 18. exf5 {[%emt 0:00:08]} Bxf5 {[%emt 0:00:46]} 19. Ne4 {[%emt 0:00:09]} Nd4 {[%emt 0:02:55]} 20. f3 {[%emt 0:05:56]} Qd7 {[%emt 0:05:48]} 21. Rad1 {[%emt 0:12:00]} Qa7 {[%emt 0:04:47]} 22. Kh1 {[%emt 0:00:36]} Bg6 {[%emt 0:02:37]} 23. c3 {[%emt 0:04:31]} Bxe4 {[%emt 0:03:12]} 24. Qxe4 {[%emt 0:08:10]} bxc3 {[%emt 0:02:33]} 25. Nxc3 {[%emt 0:01:52]} Qc5 {[%emt 0:04:28]} 26. Qd3 {[%emt 0:14:57]} Bf4 {[%emt 0:07:15]} 27. g3 {[%emt 0:06:27]} Bh6 {[%emt 0:03:01]} 28. Qe4 {[%emt 0:01:11]} Nxb3 {[%emt 0:06:46]} 29. Bxb3 {[%emt 0:09:18]} Rxb3 {[%emt 0:03:16]} 30. Nb5 {[%emt 0:05:20]} Rb4 {[%emt 0:06:11]} 31. Qd5 {[%emt 0:00:11]} Rxa4 {[%emt 0:02:23]} 32. Nxd6 {[%emt 0:00:56]} Qxd5 {[%emt 0:00:15]} 33. Rxd5 {[%emt 0:00:02]} Rd4 {[%emt 0:01:59]} 34. Rd1 {[%emt 0:03:22]} Rxd1+ {[%emt 0:03:03]} 35. Rxd1 {[%emt 0:00:07]} g6 {[%emt 0:01:43]} 36. Kg2 {[%emt 0:01:08]} Kg8 {[%emt 0:01:04]} 37. Ra1 {[%emt 0:00:27]} Ra8 {[%emt 0:01:48]} 38. Nc4 {[%emt 0:00:17]} a4 {[%emt 0:05:02]} 39. Nb6 {[%emt 0:00:10]} Ra6 {[%emt 0:02:01]} 40. Nxa4 {[%emt 0:00:14]} Bd2 {[%emt 0:02:25]} 41. Ra2 {[%emt 0:01:22]} Bb4 {[%emt 0:01:53]} 42. Nc3 {[%emt 0:00:47]} Rxa2+ {[%emt 0:00:16]} 43. Nxa2 {[%emt 0:00:07]} Bd2 {[%emt 0:00:24]} 44. Kf2 {[%emt 0:00:12]} Kf7 {[%emt 0:00:16]} 45. Ke2 {[%emt 0:00:14]} Ba5 {[%emt 0:00:13]} 46. Kd3 {[%emt 0:00:37]} Ke6 {[%emt 0:00:50]} 47. Ke4 {[%emt 0:00:13]} Bd2 {[%emt 0:00:52]} 48. Kd3 {[%emt 0:00:12]} Ba5 {[%emt 0:00:08]} 49. Nc1 {[%emt 0:00:18]} Kf5 {[%emt 0:01:01]} 50. Ne2 {[%emt 0:03:23]} h5 {[%emt 0:00:29]} 51. h3 {[%emt 0:00:21]} Bb4 {[%emt 0:04:47]} 52. g4+ {[%emt 0:01:39]} Kg5 {[%emt 0:02:07]} 53. Ke4 {[%emt 0:00:25]} Bd6 {[%emt 0:01:03]} 54. Ng3 {[%emt 0:00:36]} Kh4 {[%emt 0:02:26]} 55. gxh5 {[%emt 0:00:12]} Kxg3 {[%emt 0:01:07]} 56. hxg6 {[%emt 0:00:15]} Bf8 {[%emt 0:00:17]} 57. Kxe5 {[%emt 0:00:50]} Kxf3 {[%emt 0:01:46]} 58. Kf6 {[%emt 0:00:21]} Kg3 {[%emt 0:00:21]} 59. Kf7 {[%emt 0:00:08]} Bh6 {[%emt 0:00:07]} 60. Kg8 {[%emt 0:00:08]} Kxh3 {[%emt 0:00:22]} 1/2-1/2

[Event "1000GM Schev-C-C February 2024"]
[Site "Santa Clara"]
[Date "2024.02.24"]
[Round "2.1"]
[White "Pinzon, Jairo David"]
[Black "Ganesan, Vikrant"]
[Result "1-0"]
[ECO "A18"]
[WhiteElo "2114"]
[BlackElo "1870"]
[Annotator "ChessBase"]
[PlyCount "63"]
[EventDate "2024.02.13"]
[EventType "schev"]
[EventCountry "USA"]
[SourceTitle "playchess.com"]
[Source "ChessBase"]
[SourceQuality "1"]
[TimeControl "5400+30"]

1. c4 {[%emt 0:07:52]} Nf6 {[%emt 0:02:18]} 2. Nc3 {[%emt 0:00:07]} e6 {[%emt 0:00:04]} 3. e4 {[%emt 0:00:13]} d5 {[%emt 0:00:03]} 4. e5 {[%emt 0:00:12]} d4 {[%emt 0:00:03]} 5. exf6 {[%emt 0:00:26]} dxc3 {[%emt 0:00:04]} 6. bxc3 {[%emt 0:00:08]} Qxf6 {[%emt 0:00:05]} 7. Nf3 {[%emt 0:01:29]} e5 {[%emt 0:03:08]} 8. d4 {[%emt 0:01:59]} exd4 {[%emt 0:01:24]} 9. cxd4 {[%emt 0:00:09]} Bb4+ {[%emt 0:00:05]} 10. Bd2 {[%emt 0:00:17]} Bxd2+ {[%emt 0:00:11]} 11. Qxd2 {[%emt 0:00:10]} O-O {[%emt 0:00:04]} 12. Be2 {[%emt 0:00:34]} b6 {[%emt 0:13:58]} 13. O-O {[%emt 0:00:25]} Bb7 {[%emt 0:00:25]} 14. a4 {[%emt 0:02:40]} Nc6 {[%emt 0:02:04]} 15. d5 {[%emt 0:04:25]} Rad8 {[%emt 0:08:32]} 16. Rfd1 {[%emt 0:06:51]} Rfe8 {[%emt 0:03:04]} 17. Rab1 {[%emt 0:09:02]} Na5 {[%emt 0:06:59]} 18. Qb2 {[%emt 0:11:18]} Qxb2 {[%emt 0:10:45]} 19. Rxb2 {[%emt 0:00:06]} Ba6 {[%emt 0:01:48]} 20. Rc2 {[%emt 0:03:12]} Kf8 {[%emt 0:08:53]} 21. h3 {[%emt 0:04:39]} Rxe2 {[%emt 0:01:34]} 22. Rxe2 {[%emt 0:00:19]} Bxc4 {[%emt 0:00:11]} 23. Red2 {[%emt 0:04:12]} Bb3 {[%emt 0:18:47]} 24. Rc1 {[%emt 0:01:49]} Bxa4 {[%emt 0:01:56]} 25. Rxc7 {[%emt 0:01:11]} a6 {[%emt 0:01:19]} 26. Ng5 {[%emt 0:04:19]} Rd7 {[%emt 0:02:39]} 27. d6 {[%emt 0:06:06]} g6 {[%emt 0:01:55]} 28. Nxh7+ {[%emt 0:04:01]} Kg7 {[%emt 0:00:05]} 29. Ng5 {[%emt 0:00:12]} Nb7 {[%emt 0:01:24]} 30. Rb2 {[%emt 0:07:53]} Nc5 {[%emt 0:05:45]} 31. Rxb6 {[%emt 0:01:08]} Kf6 {[%emt 0:00:20]} 32. Rxc5 {[%emt 0:00:21]} 1-0

[Event "1000GM Schev-C-C February 2024"]
[Site "Santa Clara"]
[Date "2024.02.24"]
[Round "2.2"]
[White "Zapata Campos, Lidia Karen"]
[Black "Yang, Maxwell"]
[Result "0-1"]
[ECO "B91"]
[WhiteElo "2025"]
[BlackElo "1946"]
[Annotator "ChessBase"]
[PlyCount "56"]
[EventDate "2024.02.13"]
[EventType "schev"]
[EventCountry "USA"]
[SourceTitle "playchess.com"]
[Source "ChessBase"]
[SourceQuality "1"]
[TimeControl "5400+30"]

1. e4 {[%emt 0:01:00]} c5 {[%emt 0:01:39]} 2. Nf3 {[%emt 0:00:26]} d6 {[%emt 0:00:13]} 3. d4 {[%emt 0:00:11]} cxd4 {[%emt 0:00:11]} 4. Nxd4 {[%emt 0:00:08]} Nf6 {[%emt 0:00:03]} 5. Nc3 {[%emt 0:00:06]} a6 {[%emt 0:00:03]} 6. g3 {[%emt 0:00:30]} e5 {[%emt 0:01:15]} 7. Nde2 {[%emt 0:00:31]} Be7 {[%emt 0:00:47]} 8. Bg2 {[%emt 0:00:16]} O-O {[%emt 0:00:11]} 9. a4 {[%emt 0:00:08]} Be6 {[%emt 0:05:21]} 10. O-O {[%emt 0:00:39]} Nbd7 {[%emt 0:02:39]} 11. h3 {[%emt 0:04:22]} Rc8 {[%emt 0:03:35]} 12. Be3 {[%emt 0:05:18]} Qc7 {[%emt 0:04:50]} 13. g4 {[%emt 0:14:13]} h6 {[%emt 0:00:27]} 14. Ng3 {[%emt 0:01:07]} Nb6 {[%emt 0:00:24]} 15. Nf5 {[%emt 0:01:27]} Bxf5 {[%emt 0:00:17]} 16. gxf5 {[%emt 0:01:02]} Rfd8 {[%emt 0:02:52]} 17. Qe2 {[%emt 0:05:13]} d5 {[%emt 0:26:05]} 18. a5 {[%emt 0:13:06]} Nc4 {[%emt 0:01:48]} 19. Nxd5 {[%emt 0:08:21]} Nxd5 {[%emt 0:00:31]} 20. exd5 {[%emt 0:00:06]} Nxe3 {[%emt 0:00:16]} 21. fxe3 {[%emt 0:04:25]} Qxc2 {[%emt 0:00:14]} 22. Qg4 {[%emt 0:01:56]} Bf6 {[%emt 0:01:55]} 23. Qb4 {[%emt 0:04:24]} Qe2 {[%emt 0:05:00]} 24. Rae1 {[%emt 0:07:43]} Qd3 {[%emt 0:01:42]} 25. Rf2 {[%emt 0:14:31]} Bg5 {[%emt 0:00:33]} 26. Rfe2 {[%emt 0:05:52]} Rc1 {[%emt 0:10:26]} 27. Qe4 {[%emt 0:06:14]} Qxe2 {[%emt 0:00:19]} 28. Rxc1 {[%emt 0:00:23]} Qxe3+ {[%emt 0:00:04]} 0-1

[Event "1000GM Schev-C-C February 2024"]
[Site "Santa Clara"]
[Date "2024.02.24"]
[Round "2.3"]
[White "Montes Orozco, Miguel Angel"]
[Black "Wu, Jayden"]
[Result "1-0"]
[ECO "A17"]
[WhiteElo "2178"]
[BlackElo "1814"]
[Annotator "RC"]
[PlyCount "73"]
[EventDate "2024.02.13"]
[EventType "schev"]
[EventCountry "USA"]
[SourceTitle "playchess.com"]
[Source "ChessBase"]
[SourceQuality "1"]
[TimeControl "5400+30"]

1. Nf3 {[%emt 0:03:53]} d5 {[%emt 0:00:03]} 2. e3 {[%emt 0:00:07]} Nf6 {[%emt 0:00:11]} 3. c4 {[%emt 0:00:06]} e6 {[%emt 0:00:05]} 4. Nc3 {[%emt 0:00:09]} Bd6 {[%emt 0:00:06]} 5. b3 {[%emt 0:00:27]} O-O {[%emt 0:00:23]} 6. Bb2 {[%emt 0:00:07]} Re8 {[%emt 0:00:09]} 7. d4 {[%emt 0:00:31]} b6 {[%emt 0:00:26]} 8. Bd3 {[%emt 0:01:10]} Bb7 {[%emt 0:00:09]} 9. cxd5 {[%emt 0:00:13]} exd5 {[%emt 0:00:11]} 10. O-O {[%emt 0:00:11]} Nbd7 {[%emt 0:04:00]} 11. Nb5 {[%emt 0:01:53]} Bf8 {[%emt 0:00:13]} 12. Rc1 {[%emt 0:00:15]} c6 {[%emt 0:04:13]} 13. Nc3 {[%emt 0:00:06]} a6 {[%emt 0:08:39]} 14. Ne2 {[%emt 0:00:21]} c5 {[%emt 0:04:14]} 15. Ng3 {[%emt 0:01:20]} Ne4 {[%emt 0:01:54]} 16. dxc5 {[%emt 0:03:26]} Ndxc5 {[%emt 0:01:14]} 17. Bb1 {[%emt 0:01:34]} a5 {[%emt 0:15:52]} 18. Re1 {[%emt 0:20:52]} Nxg3 {[%emt 0:19:32]} 19. hxg3 {[%emt 0:03:29]} Ne4 {[%emt 0:00:18]} 20. Nd4 {[%emt 0:01:40]} Rc8 {[%emt 0:05:40]} 21. Qd3 {[%emt 0:02:41]} g6 {[%emt 0:04:14]} 22. Rxc8 {[%emt 0:03:34]} Qxc8 {[%emt 0:00:30]} 23. Ne2 {[%emt 0:01:03]} Bd6 {[%emt 0:09:09]} 24. Nf4 {[%emt 0:03:28]} Qf5 {[%emt 0:04:13]} 25. Qb5 {[%emt 0:00:18]} Qc8 {[%emt 0:04:20]} 26. Nxd5 {[%emt 0:02:52]} Bc6 {[%emt 0:02:44]} 27. Qd3 {[%emt 0:03:24]} Bc5 {[%emt 0:04:14]} 28. Qc4 {[%emt 0:04:22]} Bxd5 {[%emt 0:04:49]} 29. Qxd5 {[%emt 0:00:44]} Qe6 {[%emt 0:00:15]} 30. Rd1 {[%emt 0:00:53]} Qxd5 {[%emt 0:00:41]} 31. Rxd5 {[%emt 0:02:00]} Nd6 {[%emt 0:01:35]} 32. g4 {[%emt 0:00:17]} Kf8 {[%emt 0:00:45]} 33. Bd3 {[%emt 0:01:54]} Ke7 {[%emt 0:00:31]} 34. g5 {[%emt 0:00:42]} Nb7 {[%emt 0:01:10]} 35. Bb5 {[%emt 0:00:29]} Rb8 {[%emt 0:00:19]} 36. Bf6+ {[%emt 0:01:12]} Ke6 {[%emt 0:00:31]} 37. e4 {[%emt 0:37:17]} 1-0